bitfinex/quotes_SOLUSD_20251009
["timestamp","ask_amount","ask_price","bid_price","bid_amount"]
[1760041645808,5.28001282,218.34,218.31,0.7]
[1760041646193,4.58001282,218.34,218.31,0.7]
[1760041646391,4.58001282,218.34,218.3,78.9]
[1760041646592,4.58001282,218.34,218.32,0.7]
[1760041646992,4.58001282,218.34,218.32,79.6]
[1760041650413,3.07585691,218.35,218.33,0.7]
[1760041650610,4.5797924,218.36,218.33,0.7]
[1760041650806,4.5797924,218.36,218.32,78.9]
[1760041651006,4.5797924,218.36,218.34,0.7]
[1760041651894,4.57938361,218.37,218.34,0.7]
[1760041652093,5.27938361,218.37,218.34,0.7]
[1760041652811,5.27938361,218.37,218.34,79.6]
[1760041653400,4.57938361,218.37,218.34,79.6]
[1760041656320,7.65188868,218.37,218.34,79.6]
[1760041656698,0.69,218.36,218.34,78.9]
[1760041656898,3.76250507,218.36,218.34,78.9]
[1760041657107,3.07250507,218.36,218.35,0.67]
[1760041657310,7.65188868,218.37,218.35,0.67]
[1760041657510,3.07250507,218.37,218.36,0.67]
[1760041657705,5.26938361,218.37,218.35,78.9]
[1760041657903,0.69,218.36,218.35,78.9]
[1760041658107,4.57938361,218.37,218.35,78.9]
[1760041658307,5.26938361,218.37,218.35,78.9]
[1760041658919,7.65188868,218.37,218.35,78.9]
[1760041659109,5.26959333,218.36,218.35,78.9]
[1760041659630,4.57959333,218.36,218.35,78.9]
[1760041659829,5.26959333,218.36,218.35,78.9]
[1760041660025,4.57959333,218.36,218.35,78.9]
[1760041660319,7.6520984,218.36,218.35,78.9]
[1760041660522,4.57959333,218.36,218.35,78.9]
[1760041660727,40.4220984,218.36,218.35,78.9]
[1760041661737,51.87108173,218.36,218.31,0.67]
[1760041661949,3.76250507,218.35,218.31,0.67]
[1760041662244,7.65251789,218.34,218.32,0.67]
[1760041662908,4.58001282,218.34,218.32,0.67]
[1760041663109,7.65251789,218.34,218.32,0.67]
[1760041663311,4.58001282,218.34,218.33,0.67]
[1760041666331,3.07250507,218.35,218.33,0.67]
[1760041666545,3.07250507,218.37,218.34,0.71]
[1760041666717,3.07250507,218.41,218.35,20.8]
[1760041667037,3.07250507,218.42,218.36,0.71]
[1760041667239,3.07250507,218.41,218.36,0.71]
[1760041667414,7.65086259,218.42,218.36,0.71]
[1760041667617,3.07250507,218.41,218.36,0.71]
[1760041668123,3.07250507,218.4,218.36,0.71]
[1760041668322,3.07250507,218.41,218.36,0.71]
[1760041668524,3.07250507,218.4,218.36,0.71]
[1760041668735,3.07250507,218.41,218.36,0.71]
[1760041668934,3.07250507,218.4,218.36,0.71]
[1760041669233,3.07250507,218.41,218.36,5.28954134]
[1760041669435,3.07250507,218.4,218.37,0.71]
[1760041669735,7.6509263,218.42,218.37,0.71]
[1760041669938,3.07250507,218.41,218.37,0.71]
[1760041670242,3.07250507,218.4,218.38,32.06]
[1760041670414,3.07250507,218.43,218.39,0.71]
[1760041670618,3.07250507,218.44,218.39,0.71]
[1760041670843,36.63751952,218.46,218.39,0.71]
[1760041670844,3.07250507,218.45,218.39,0.71]
[1760041671041,3.07250507,218.44,218.39,14.45727918]
[1760041671344,7.65021453,218.45,218.4,0.71]
[1760041671527,3.07250507,218.44,218.4,0.71]
[1760041671836,3.07250507,218.44,218.4,5.28867833]
[1760041672140,3.07250507,218.45,218.41,0.71]
[1760041672326,3.07250507,218.44,218.42,0.71]
[1760041672513,3.07250507,218.45,218.42,0.71]
[1760041672714,3.07250507,218.44,218.42,0.71]
[1760041673049,3.07250507,218.45,218.42,0.71]
[1760041673237,7.65039974,218.45,218.42,0.71]
[1760041673616,3.77250507,218.44,218.38,46.51727918]
[1760041673924,3.77250507,218.43,218.36,0.71]
[1760041674123,0.7,218.43,218.36,0.71]
[1760041674329,3.77250507,218.43,218.36,0.71]
[1760041674634,0.7,218.43,218.36,0.71]
[1760041674826,3.77250507,218.43,218.36,0.71]
[1760041675028,0.7,218.43,218.36,0.71]
[1760041675228,3.77250507,218.43,218.36,0.71]
[1760041675539,4.57833531,218.42,218.36,5.28947547]
[1760041675728,5.27833531,218.42,218.36,5.28947547]
[1760041675929,8.35084038,218.42,218.36,5.28947547]
[1760041676141,0.7,218.42,218.37,20.8]
[1760041676322,3.77250507,218.42,218.38,0.71]
[1760041676636,3.07250507,218.42,218.38,79.61]
[1760041676843,3.07250507,218.42,218.39,0.71]
[1760041677241,8.35091845,218.42,218.39,0.71]
[1760041677431,5.27841338,218.42,218.39,0.71]
[1760041677946,4.57841338,218.42,218.39,0.71]
[1760041678440,4.57841338,218.42,218.38,78.9]
[1760041678648,5.27841338,218.42,218.38,79.61]
[1760041679540,0.7,218.41,218.38,78.9]
[1760041679725,3.77250507,218.4,218.3,78.9]
[1760041679925,47.70072688,218.42,218.3,79.61]
[1760041679926,35.83250507,218.39,218.3,79.61]
[1760041680126,3.77250507,218.38,218.3,79.61]
[1760041680445,0.7,218.37,218.31,0.71]
[1760041681527,4.57959333,218.36,218.3,78.9]
[1760041681752,0.7,218.35,218.28,34.55358166]
[1760041681933,35.13250507,218.34,218.26,0.71]
[1760041682133,10.87647521,218.32,218.23,14.46673506]
[1760041682337,0.7,218.31,218.23,0.71]
[1760041682645,3.07250507,218.31,218.24,20.8]
[1760041682835,32.06,218.32,218.25,0.72]
[1760041683540,32.06,218.32,218.28,20.8]
[1760041683742,32.06,218.32,218.28,0.72]
[1760041684567,36.64047211,218.32,218.28,0.72]
[1760041685147,37.34047211,218.32,218.28,0.72]
[1760041685337,32.76,218.32,218.28,0.72]
[1760041687170,0.7,218.31,218.25,13.75547353]
[1760041687336,0.7,218.3,218.21,45.8570512]
[1760041687526,0.7,218.3,218.23,5.30232137]
[1760041687731,48.09165672,218.32,218.23,5.30232137]
[1760041687732,36.64057574,218.32,218.24,0.72]
[1760041687953,37.34057574,218.32,218.24,0.72]
[1760041688150,37.34057574,218.32,218.25,4.58190148]
[1760041688353,37.34057574,218.32,218.25,0.72]
[1760041688534,0.7,218.31,218.25,0.72]
[1760041689761,4.58085203,218.3,218.25,0.72]
[1760041689932,0.7,218.29,218.25,0.72]
[1760041691142,5.28106861,218.29,218.25,0.72]
[1760041691457,5.28106861,218.29,218.25,79.62]
[1760041692750,5.28106861,218.29,218.25,78.9]
[1760041692949,0.7,218.28,218.25,78.9]
[1760041693162,0.7,218.27,218.25,78.9]
[1760041693353,0.7,218.26,218.25,78.9]
[1760041694645,0.7,218.28,218.25,78.9]
[1760041694845,0.7,218.27,218.25,78.9]
[1760041695555,5.28106189,218.29,218.25,78.9]
[1760041695746,0.7,218.28,218.25,78.9]
[1760041697368,5.28137145,218.28,218.25,78.9]
[1760041700170,0.7,218.28,218.25,79.62]
[1760041700362,4.58085203,218.3,218.25,79.62]
[1760041700549,0.7,218.29,218.25,79.62]
[1760041701970,5.28114251,218.29,218.25,79.62]
[1760041702349,5.28114251,218.29,218.26,0.72]
[1760041703374,5.28114251,218.29,218.26,79.62]
[1760041703844,4.58085203,218.3,218.26,79.62]
[1760041704051,5.28085203,218.3,218.26,79.62]
[1760041705558,13.84277628,218.31,218.27,0.72]
[1760041705559,6.97166477,218.31,218.27,0.72]
[1760041705772,6.97166477,218.31,218.27,79.62]
[1760041705958,6.97166477,218.31,218.28,0.72]
[1760041706157,6.97166477,218.31,218.29,0.72]
[1760041706558,6.97166477,218.31,218.27,78.9]
[1760041706758,0.7,218.3,218.27,78.9]
[1760041706973,6.97166477,218.31,218.27,78.9]
[1760041707157,0.7,218.3,218.27,78.9]
[1760041707870,6.97166477,218.31,218.27,78.9]
[1760041708168,4.58106189,218.29,218.27,78.9]
[1760041711374,4.58085248,218.3,218.28,0.72]
[1760041711555,4.58085248,218.3,218.29,0.72]
[1760041711963,4.58085248,218.3,218.27,79.62]
[1760041712162,4.58085248,218.3,218.28,0.72]
[1760041712781,4.58085248,218.3,218.27,78.9]
[1760041712983,4.58085248,218.3,218.27,79.62]
[1760041713575,4.58085248,218.3,218.28,0.72]
[1760041713776,6.97161602,218.31,218.28,0.72]
[1760041713962,7.62161602,218.31,218.28,0.72]
[1760041714160,7.62161602,218.31,218.27,78.9]
[1760041714373,7.62161602,218.31,218.27,79.62]
[1760041715178,6.97161602,218.31,218.27,78.9]
[1760041715389,6.97161602,218.31,218.28,0.72]
[1760041716386,7.62161602,218.31,218.28,0.72]
[1760041717686,7.62161602,218.31,218.27,78.9]
[1760041717865,6.97161602,218.31,218.28,0.72]
[1760041718291,7.62161602,218.31,218.28,0.72]
[1760041719888,2.39097259,218.31,218.28,0.72]
[1760041720208,3.04097259,218.31,218.27,78.9]
[1760041720404,3.04097259,218.31,218.27,79.62]
[1760041720606,2.39097259,218.31,218.28,0.72]
[1760041720806,6.97162518,218.31,218.29,0.72]
[1760041721009,2.39097259,218.31,218.29,0.72]
[1760041721212,2.39097259,218.31,218.29,79.62]
[1760041721389,0.65,218.3,218.29,78.9]
[1760041721594,4.58106189,218.29,218.25,78.9]
[1760041721801,11.52647521,218.28,218.21,0.1]
[1760041721996,14.59486669,218.28,218.21,0.1]
[1760041722204,10.87647521,218.26,218.21,0.1]
[1760041722409,32.04,218.25,218.21,0.1]
[1760041722712,32.69,218.25,218.21,0.1]
[1760041722919,32.04,218.25,218.21,0.1]
[1760041723096,0.65,218.24,218.21,0.1]
[1760041723419,3.72319579,218.24,218.21,0.1]
[1760041723721,8.30550525,218.24,218.21,0.1]
[1760041726107,3.07319579,218.24,218.22,0.7]
[1760041726423,32.06,218.25,218.22,0.7]
[1760041726609,32.06,218.25,218.21,0.1]
[1760041726812,32.78,218.25,218.21,0.8]
[1760041727009,32.06,218.25,218.21,0.8]
[1760041727316,3.7951333,218.24,218.21,79.0]
[1760041727496,0.72,218.24,218.21,79.0]
[1760041727692,3.7951333,218.24,218.21,79.0]
[1760041727915,8.37733511,218.24,218.21,79.0]
[1760041728506,11.59647521,218.23,218.21,0.1]
[1760041728825,13.95160851,218.22,218.21,0.1]
[1760041729118,46.01160851,218.22,218.21,0.1]
[1760041729299,46.73160851,218.22,218.21,0.1]
[1760041729713,51.3141399,218.22,218.21,0.1]
[1760041730100,19.2541399,218.22,218.21,0.1]
[1760041730410,35.1351333,218.22,218.21,0.1]
[1760041731326,39.71766469,218.22,218.21,0.1]
[1760041732012,40.43766469,218.22,218.21,0.1]
[1760041732402,3.0751333,218.22,218.21,0.8]
[1760041732602,39.03419946,218.23,218.21,0.8]
[1760041733026,34.45185671,218.23,218.21,0.8]
[1760041734205,34.45185671,218.23,218.22,0.7]
[1760041734404,32.06,218.23,218.22,0.7]
[1760041734904,36.64199589,218.25,218.22,0.7]
[1760041735109,36.64200849,218.25,218.22,0.7]
[1760041736226,11.59647521,218.24,218.21,0.1]
[1760041736424,3.79139798,218.24,218.21,0.1]
[1760041736925,3.07139798,218.24,218.21,0.1]
[1760041737240,0.72,218.23,218.21,0.1]
[1760041737422,32.06,218.22,218.21,0.1]
[1760041738105,36.64253139,218.22,218.21,0.1]
[1760041738301,4.58253139,218.22,218.21,0.1]
[1760041738513,36.64253139,218.22,218.21,0.1]
[1760041740611,40.43290871,218.22,218.21,0.1]
[1760041740830,37.36253139,218.22,218.21,0.1]
[1760041741713,36.64253139,218.22,218.21,0.1]
[1760041741910,36.64253139,218.22,218.21,79.0]
[1760041742830,48.2090066,218.22,218.21,0.1]
[1760041743133,51.27791101,218.22,218.21,0.1]
[1760041743510,10.87647521,218.21,218.2,0.1]
[1760041743719,13.94537962,218.21,218.2,0.1]
[1760041743935,14.63537962,218.21,218.2,0.1]
[1760041745325,19.21812101,218.21,218.2,0.1]
[1760041750745,19.21812101,218.21,218.19,1e-08]
[1760041750920,19.21812101,218.21,218.18,0.1]
[1760041750921,10.87647521,218.19,218.18,0.03151634]
[1760041751247,13.94537962,218.19,218.18,0.03151634]
[1760041751448,14.63537962,218.19,218.18,0.03151634]
[1760041752049,14.63537962,218.19,218.17,1e-08]
[1760041752249,42.93647521,218.18,218.17,1e-08]
[1760041752549,46.00537962,218.18,218.17,1e-08]
[1760041752725,51.27875114,218.18,218.17,1e-08]
[1760041753545,50.58875114,218.18,218.17,1e-08]
[1760041753849,32.06,218.18,218.17,0.69000001]
[1760041755258,36.64337152,218.18,218.17,0.69000001]
[1760041758750,11.45685348,218.21,218.17,0.69000001]
[1760041758958,32.08,218.2,218.17,0.69000001]
[1760041759125,4.58253139,218.22,218.17,0.69000001]
[1760041759331,32.08,218.21,218.18,0.69]
[1760041759752,32.08,218.21,218.19,0.69]
[1760041760256,4.58295142,218.2,218.19,0.69]
[1760041763942,36.66274226,218.21,218.19,0.69]
[1760041764246,36.66274226,218.21,218.2,0.69]
[1760041764548,4.58169156,218.26,218.2,79.59]
[1760041764753,32.06,218.25,218.2,78.9]
[1760041764958,2.3915,218.24,218.21,0.69]
[1760041765136,32.06,218.23,218.21,0.69]
[1760041768463,32.06,218.23,218.22,0.69]
[1760041768661,0.69,218.22,218.2,78.9]
[1760041769260,32.06,218.21,218.2,78.9]
[1760041769431,32.06,218.21,218.18,0.69]
[1760041769630,32.06,218.21,218.19,0.69]
[1760041769929,2.3915,218.24,218.19,79.59]
[1760041770254,3.81816444,218.28,218.19,79.59]
[1760041770255,4.58170618,218.26,218.2,0.69]
[1760041770563,32.06,218.25,218.2,0.69]
[1760041771150,32.06,218.25,218.21,0.69]
[1760041771361,32.75,218.25,218.21,0.69]
[1760041771656,37.3320823,218.25,218.21,0.69]
[1760041772152,36.6420823,218.25,218.19,83.48314448]
[1760041772345,36.6420823,218.25,218.22,0.69]
[1760041772655,3.75633624,218.24,218.19,79.59]
[1760041772826,32.77,218.23,218.19,79.59]
[1760041774255,37.35244454,218.23,218.19,79.59]
[1760041774432,3.10141895,218.28,218.2,0.68]
[1760041774636,36.6415748,218.27,218.2,79.58]
[1760041774845,3.066643,218.26,218.2,78.9]
[1760041775056,3.066643,218.26,218.21,0.68]
[1760041775260,3.066643,218.26,218.2,78.9]
[1760041775437,3.776643,218.26,218.22,0.68]
[1760041776761,8.35835262,218.26,218.22,0.68]
[1760041777549,8.35835262,218.26,218.22,79.58]
[1760041786463,0.7,218.25,218.22,78.9]
[1760041786653,0.7,218.24,218.22,78.9]
[1760041786839,32.76,218.23,218.22,78.9]
[1760041787040,35.826643,218.23,218.22,78.9]
[1760041787249,35.126643,218.23,218.22,78.9]
[1760041788476,39.7089644,218.23,218.22,78.9]
[1760041788768,32.06,218.23,218.22,79.59]
[1760041789865,36.6423214,218.23,218.22,79.59]
[1760041793469,36.6423214,218.23,218.22,78.9]
[1760041796073,32.06,218.23,218.22,79.59]
[1760041797752,32.06,218.23,218.22,78.9]
[1760041799450,35.12998127,218.23,218.22,78.9]
[1760041799655,35.12998127,218.23,218.22,79.59]
[1760041800251,35.12998127,218.23,218.22,78.9]
[1760041800648,3.06998127,218.23,218.22,79.59]
[1760041800868,3.06998127,218.27,218.22,84.17253139]
[1760041801071,4.58123478,218.29,218.22,84.17253139]
[1760041801072,3.06998127,218.28,218.23,32.75]
[1760041801272,3.06998127,218.28,218.24,0.69]
[1760041801758,0.7,218.27,218.23,78.9]
[1760041801966,35.82998127,218.26,218.23,78.9]
[1760041802259,3.76998127,218.25,218.23,78.9]
[1760041802474,35.12998127,218.24,218.23,78.9]
[1760041802783,40.4120927,218.24,218.23,78.9]
[1760041803975,51.86737129,218.24,218.2,78.9]
[1760041804166,3.72998127,218.23,218.2,78.9]
[1760041804364,35.78998127,218.22,218.2,78.9]
[1760041804572,3.06998127,218.21,218.2,79.58]
[1760041804768,3.06998127,218.21,218.2,78.9]
[1760041806061,7.65272266,218.21,218.2,78.9]
[1760041809082,8.31272266,218.21,218.2,78.9]
[1760041809266,7.65272266,218.21,218.2,78.9]
[1760041810497,8.31272266,218.21,218.2,78.9]
[1760041812382,7.65272266,218.21,218.2,78.9]
[1760041812591,8.31272266,218.21,218.2,78.9]
[1760041812883,3.06998127,218.21,218.2,79.58]
[1760041813101,3.06998127,218.27,218.2,116.22295142]
[1760041813386,3.06998127,218.29,218.23,20.8]
[1760041813585,3.06998127,218.28,218.24,5.26211005]
[1760041813894,3.06998127,218.29,218.25,32.74]
[1760041814056,3.07344763,218.33,218.28,20.8]
[1760041814258,35.13344763,218.35,218.29,0.68]
[1760041814481,3.07344763,218.34,218.29,0.68]
[1760041814893,36.63981264,218.35,218.29,0.68]
[1760041815689,3.73086449,218.34,218.28,78.9]
[1760041815888,11.53647521,218.33,218.28,78.9]
[1760041816079,10.87647521,218.31,218.28,78.9]
[1760041816393,32.72,218.3,218.28,78.9]
[1760041816562,3.73086449,218.29,218.28,78.9]
[1760041817787,7.65192638,218.29,218.28,78.9]
[1760041818693,4.58106189,218.29,218.28,78.9]
[1760041818898,32.06,218.3,218.28,78.9]
[1760041819190,36.64091308,218.3,218.26,0.68]
[1760041819406,36.64091308,218.3,218.27,0.68]
[1760041819584,32.06,218.29,218.27,0.68]
[1760041821597,36.6411635,218.29,218.25,0.68]
[1760041821912,36.6411635,218.29,218.26,0.68]
[1760041823908,36.6411635,218.29,218.22,78.9]
[1760041824085,3.72398703,218.28,218.22,79.58]
[1760041824287,32.04,218.27,218.22,79.58]
[1760041824612,3.72398703,218.28,218.23,0.68]
[1760041824613,32.04,218.28,218.23,0.68]
[1760041826209,36.62147519,218.28,218.24,0.68]
[1760041826599,32.04,218.28,218.25,0.68]
[1760041827601,32.04,218.28,218.22,83.48248354]
[1760041827801,32.04,218.28,218.25,0.68]
[1760041828009,36.62127629,218.28,218.25,79.58]
[1760041828388,36.62127629,218.28,218.26,0.68]
[1760041829204,36.62127629,218.28,218.25,78.9]
[1760041829388,36.62127629,218.28,218.25,79.58]
[1760041829589,36.62127629,218.28,218.26,0.68]
[1760041829806,36.62127629,218.28,218.25,78.9]
[1760041830105,32.04,218.28,218.26,0.68]
[1760041830404,5.23980306,218.35,218.27,0.68]
[1760041830707,32.04,218.34,218.27,79.58]
[1760041830911,32.7,218.34,218.28,0.68]
[1760041832212,4.58022259,218.33,218.28,0.68]
[1760041832515,5.24022259,218.33,218.29,0.68]
[1760041834018,5.24022259,218.33,218.29,79.58]
[1760041835095,4.58022259,218.33,218.3,0.65]
[1760041835593,5.27022259,218.33,218.29,78.9]
[1760041835793,5.27022259,218.33,218.29,79.55]
[1760041837414,32.04,218.34,218.3,0.65]
[1760041837716,32.04,218.34,218.31,0.65]
[1760041838700,32.73,218.34,218.29,79.55]
[1760041839013,36.62020454,218.34,218.3,0.65]
[1760041839219,36.62020454,218.34,218.31,0.65]
[1760041839902,37.31020454,218.34,218.31,79.55]
[1760041840112,37.31020454,218.34,218.31,78.9]
[1760041845213,36.62020454,218.34,218.31,79.57]
[1760041845416,37.28020454,218.34,218.31,78.9]
[1760041845797,36.62020454,218.34,218.31,79.57]
[1760041846227,37.28020454,218.34,218.31,79.57]
[1760041846411,37.28020454,218.34,218.31,78.9]
[1760041846612,2.39050814,218.36,218.32,0.67]
[1760041846813,3.06116318,218.42,218.36,20.8]
[1760041847013,9.67569588,218.43,218.37,0.67]
[1760041847233,41.71569588,218.43,218.37,0.67]
[1760041847609,41.71569588,218.43,218.38,20.8]
[1760041847813,0.2,218.43,218.39,0.67]
[1760041848705,0.66,218.42,218.37,52.84]
[1760041848901,0.2,218.43,218.37,52.84]
[1760041849125,4.77812638,218.43,218.38,0.67]
[1760041849333,0.66,218.42,218.38,0.67]
[1760041850225,4.77812638,218.43,218.37,25.37935552]
[1760041850532,4.77812638,218.43,218.39,0.67]
[1760041853245,0.86,218.43,218.37,20.8]
[1760041853446,0.86,218.43,218.39,0.67]
[1760041853623,0.66,218.42,218.39,0.67]
[1760041853943,0.66,218.42,218.39,78.9]
[1760041854747,0.66,218.41,218.39,78.9]
[1760041854921,0.66,218.4,218.32,84.15024537]
[1760041855119,0.66,218.39,218.32,79.57]
[1760041855320,0.66,218.38,218.32,0.67]
[1760041856136,5.23938153,218.38,218.32,0.67]
[1760041856933,5.23938153,218.38,218.31,99.7]
[1760041857139,0.66,218.37,218.31,99.7]
[1760041857342,32.68,218.36,218.29,78.9]
[1760041857521,0.66,218.35,218.29,78.9]
[1760041857718,0.66,218.34,218.29,78.9]
[1760041858242,5.24022783,218.33,218.29,79.57]
[1760041858535,0.66,218.35,218.3,0.67]
[1760041858714,0.66,218.35,218.28,4.58126262]
[1760041858920,0.66,218.35,218.29,0.67]
[1760041860227,0.2,218.43,218.33,20.8]
[1760041860431,0.2,218.43,218.34,0.67]
[1760041860926,0.86,218.43,218.34,0.67]
[1760041861127,4.57833531,218.42,218.34,0.67]
[1760041861332,4.57833531,218.42,218.35,4.57980306]
[1760041861542,4.57833531,218.42,218.36,0.67]
[1760041861736,11.53647521,218.41,218.33,231.27]
[1760041862049,11.53647521,218.41,218.29,0.67]
[1760041862050,11.53647521,218.4,218.29,0.67]
[1760041862219,32.02,218.39,218.29,0.67]
[1760041862418,0.66,218.38,218.29,0.67]
[1760041862638,0.66,218.38,218.29,79.57]
[1760041862839,10.87647521,218.36,218.29,78.9]
[1760041863136,10.87647521,218.34,218.25,0.69]
[1760041863347,4.58043239,218.32,218.25,0.69]
[1760041863848,16.68151337,218.32,218.25,21.49]
[1760041864016,16.68151337,218.32,218.25,0.69]
[1760041864221,16.68151337,218.32,218.25,21.49]
[1760041866449,0.65,218.31,218.25,21.49]
[1760041867946,16.68298212,218.3,218.24,20.8]
[1760041868145,16.68298212,218.3,218.24,21.49]
[1760041870731,0.65,218.29,218.24,80.3]
[1760041870930,32.04,218.28,218.2,80.99]
[1760041871127,0.65,218.27,218.2,80.99]
[1760041871328,4.58169156,218.26,218.2,80.99]
[1760041872547,4.58169156,218.26,218.21,0.69]
[1760041872742,4.58169156,218.26,218.22,0.69]
[1760041872945,4.58169156,218.26,218.23,0.69]
[1760041873343,4.58148165,218.27,218.23,0.69]
[1760041874148,0.65,218.26,218.2,80.3]
[1760041874475,4.58148165,218.27,218.21,0.69]
[1760041874835,16.03518577,218.27,218.2,80.3]
[1760041875031,0.65,218.26,218.2,80.3]
[1760041875465,0.65,218.25,218.2,80.3]
[1760041875660,0.65,218.25,218.2,80.99]
[1760041875864,0.65,218.24,218.2,80.3]
[1760041876375,0.65,218.23,218.2,80.3]
[1760041876838,4.58233822,218.23,218.2,80.3]
[1760041877169,4.58233822,218.23,218.2,80.99]
[1760041877533,0.65,218.22,218.2,80.3]
[1760041878870,4.58274139,218.21,218.2,80.3]
[1760041880078,4.58253139,218.22,218.2,80.3]
[1760041880544,5.23253139,218.22,218.2,80.3]
[1760041880945,32.04,218.23,218.21,0.69]
[1760041881246,32.04,218.23,218.2,80.3]
[1760041881439,32.69,218.23,218.2,80.3]
[1760041882066,4.58253139,218.22,218.2,80.3]
[1760041882270,5.23253139,218.22,218.2,80.3]
[1760041883171,4.58253139,218.22,218.2,80.3]
[1760041883769,4.58253139,218.22,218.2,80.99]
[1760041885175,4.58253139,218.22,218.2,80.3]
[1760041887274,4.58253139,218.22,218.2,80.99]
[1760041889160,2.39149041,218.26,218.21,0.69]
[1760041890073,7.6232046,218.26,218.21,0.69]
[1760041890269,7.6232046,218.26,218.2,80.3]
[1760041890478,7.6232046,218.26,218.21,0.69]
[1760041890654,7.6232046,218.26,218.22,0.69]
[1760041891774,6.9732046,218.26,218.23,0.69]
[1760041893580,6.9732046,218.26,218.23,80.99]
[1760041895360,7.6232046,218.26,218.23,80.3]
[1760041895562,6.9732046,218.26,218.23,80.97]
[1760041897479,2.39149041,218.26,218.24,0.67]
[1760041897685,4.58167761,218.27,218.24,0.67]
[1760041898182,4.58167761,218.27,218.25,0.67]
[1760041898375,4.58167761,218.27,218.25,80.97]
[1760041901481,32.04,218.28,218.25,80.3]
[1760041901779,2.39102502,218.29,218.26,0.67]
[1760041902081,32.04,218.32,218.26,0.67]
[1760041902781,32.04,218.32,218.26,32.71]
[1760041902975,32.04,218.32,218.27,0.67]
[1760041903381,2.39054208,218.34,218.29,20.8]
[1760041903683,3.06883768,218.39,218.33,20.8]
[1760041903993,2.38983146,218.41,218.34,0.67]
[1760041904192,32.26,218.43,218.35,32.06]
[1760041904358,32.26,218.43,218.38,20.8]
[1760041904564,0.2,218.43,218.39,0.67]
[1760041904783,0.2,218.43,218.39,32.73]
[1760041905086,0.2,218.43,218.4,0.67]
[1760041905455,0.2,218.43,218.39,32.06]
[1760041905760,0.2,218.43,218.4,0.68]
[1760041906268,0.2,218.43,218.41,0.68]
[1760041907986,0.72,218.42,218.37,21.48]
[1760041908182,0.72,218.41,218.37,20.8]
[1760041908382,0.72,218.4,218.37,20.8]
[1760041908778,0.72,218.42,218.37,20.8]
[1760041908969,0.72,218.41,218.37,21.48]
[1760041910087,32.26,218.43,218.38,0.68]
[1760041910389,0.72,218.42,218.37,20.8]
[1760041910680,0.72,218.41,218.37,20.8]
[1760041910991,0.72,218.41,218.37,21.48]
[1760041911171,48.28344186,218.43,218.37,80.3]
[1760041911479,0.72,218.4,218.37,80.3]
[1760041911661,0.72,218.39,218.37,80.3]
[1760041911862,0.72,218.41,218.37,80.3]
[1760041912059,4.57875457,218.4,218.37,80.3]
[1760041912263,0.72,218.39,218.37,80.3]
[1760041913174,36.61875457,218.4,218.37,80.3]
[1760041913382,36.61875457,218.4,218.37,80.98]
[1760041913566,4.57875457,218.4,218.37,80.98]
[1760041914286,36.61875457,218.4,218.37,80.3]
[1760041914469,4.57875457,218.4,218.37,80.3]
[1760041914670,11.44654929,218.41,218.37,80.3]